Workbook

Sheet 10_Пречене
C1: ВИДОВЕ ПРЕЧЕНЕ | AD1: Y St A.s | AE1: X ug /L | AF1: Y matrix
C2: Multiplicative | AD2: 0 | AE2: 0 | AF2: =AD2*0.1*$D$3+0.01*$D$7 -> 0
C3: b1 | D3: 10 | H3: C_st= | I3: =AC15 -> 41.26833852 | J3: ppb | AD3: 0.081 | AE3: 20 | AF3: 0.081
AA4: =SLOPE(AF1:AF7,AE1:AE7) -> 0.003993791209 | AD4: 0.197 | AE4: 50 | AF4: 0.197
H5: ∆ (C-Cmx) = | I5: =I9-I3 -> 0 | J5: ppb | AA5: =INTERCEPT(AF3:AF7,AE3:AE7) -> 0.0002073170732 | AD5: 0.4055 | AE5: 100 | AF5: 0.4055
C6: Additive | H6: ∆ %= | I6: =(I9-I3)/I9 -> 0 | AD6: 0.5925 | AE6: 150 | AF6: 0.5925
C7: b0 | D7: 0 | X7: 0.01 | AD7: 0.8015 | AE7: 200 | AF7: 0.8015
AD8: =SLOPE(AD3:AD7,AE3:AE7) -> 0.003993198874 | AE8: b1 и b1m | AF8: =SLOPE(AF3:AF7,AE3:AE7) -> 0.003993198874
H9: C_mx= | I9: =AC18 -> 41.26833852 | J9: ppb | AD9: =INTERCEPT(AD3:AD7,AE3:AE7) -> 0.0002073170732 | AE9: b0 и b0m | AF9: =INTERCEPT(AF3:AF7,AE3:AE7) -> 0.0002073170732
AB12: 55
AB13: Y samp | AC13: X | AD13: Y1 | AE13: X | AF13: Y2
AB14: =X7*0.3*AB12 -> 0.165 | AC14: 0.01 | AD14: =AB14 -> 0.165 | AE14: =AC15 -> 41.26833852 | AF14: 0
AC15: =(AB14-AF9)/AF8 -> 41.26833852 | AD15: =AB14 -> 0.165 | AE15: =AC15 -> 41.26833852 | AF15: =AB14 -> 0.165
AB16: Y samp | AC16: X | AD16: Y1 | AE16: X | AF16: Y2
AB17: =AB14 -> 0.165 | AC17: 0.01 | AD17: =AB17 -> 0.165 | AE17: =AC18 -> 41.26833852 | AF17: 0
AC18: =(AB17-AD9)/AD8 -> 41.26833852 | AD18: =AB17 -> 0.165 | AE18: =AC18 -> 41.26833852 | AF18: =AB17 -> 0.165
AF20: =CORREL(AD2:AD7,AE2:AE7) -> 0.9999002491
AF21: =AF20*AF20 -> 0.9998005081
X679: Разработка за учебни цели ВК

Sheet Horwitz
A1: Хорвиц - тромпет
G2: Horwitz - 1982
Y7: C m/m | Z7: +RSD | AA7: -RDS | AB7: SD
Y8: 1 | Z8: =2^(1-(0.5*LOG(Y8))) -> 2 | AA8: =-Z8 -> -2 | AB8: =0.02*(Y8^0.8495) -> 0.02 | AC8: =AB8/Y8 -> 0.02
Y9: 0.1 | Z9: =2^(1-(0.5*LOG(Y9))) -> 2.828427125 | AA9: =-Z9 -> -2.828427125 | AB9: =0.02*(Y9^0.8495) -> 0.00282832945 | AC9: 0.0282832945
G10: 1000 ppm | Y10: 0.001 | Z10: 5.656854249 | AA10: -5.656854249 | AB10: 5.656268222e-05 | AC10: 0.05656268222
G11: 100 ppm | Y11: 0.0001 | Z11: 8 | AA11: -8 | AB11: 7.998894995e-06 | AC11: 0.07998894995
G12: 10 ppm | Y12: 1e-05 | Z12: 11.3137085 | AA12: -11.3137085 | AB12: 1.131175514e-06 | AC12: 0.1131175514
G13: ppm | Y13: 1e-06 | Z13: 16 | AA13: -16 | AB13: 1.59966851e-07 | AC13: 0.159966851
G14: 100 ppb | Y14: 1e-07 | Z14: =2^(1-(0.5*LOG(Y14))) -> 22.627417 | AA14: -22.627417 | AB14: 2.262194779e-08 | AC14: 0.2262194779
G15: 10ppb | Y15: 1e-08 | Z15: =2^(1-(0.5*LOG(Y15))) -> 32 | AA15: -32 | AB15: 3.199116057e-09 | AC15: 0.3199116057
G16: ppb | Y16: 1e-09 | Z16: 45.254834 | AA16: -45.254834 | AB16: 4.52407708e-10 | AC16: 0.452407708
G17: 0.1 ppb | Y17: 1e-10 | Z17: 64 | AA17: -64 | AB17: 6.397790219e-11 | AC17: 0.6397790219
Y18: 1e-12 | Z18: =2^(1-(0.5*LOG(Y18))) -> 128 | AA18: =-Z18 -> -128 | AB18: 1.279469671e-12 | AC18: =AB18/Y18 -> 1.279469671
C22: 3 | F22: Задай концентрация като отношение
B23: C(m/M)= | C23: =POWER(10,-C22) -> 0.001 | F23: C(m/M)= | G23: 10
B24: (+-RSD)= | C24: =2^(1-(0.5*LOG(C23))) -> 5.656854249 | F24: (+-RSD)= | G24: =2^(1-(0.5*LOG(G23))) -> 1.414213562
C25: =-C24 -> -5.656854249
B27: SD_H= | C27: =0.02*C23^0.8495 -> 5.656268222e-05 | E27: Michael Thompson and Roger Wood - Using uncertainty to predict and specify the performance of analytical method
B28: RSD_H= | C28: =C27/C23 -> 0.05656268222 | E28: LOD | F28: RSD% | G28: C | I28: Horwiz RSD% | J28: Max u_
E29: =E33*H29 -> 1.8e-07 | F29: =F33*100 -> 12 | G29: =G33*H29 -> 7.9e-07 | H29: =10^-H30 -> 1e-07 | I29: =2^(1-(0.5*LOG(G29))) -> 16.57786661 | J29: =I29*G29/100 -> 1.309651462e-07
H30: 7
A31: relative standard uncertainty RSU | E31: 18 | F31: 12 | G31: 79 | I31: 405
E32: P | F32: Q | G32: C | I32: RSD
E33: =E31*0.1 -> 1.8 | F33: =F31*0.01 -> 0.12 | G33: =G31*0.1 -> 7.9 | I33: =I31*0.1 -> 40.5
D34: u | E34: =SQRT((E33)+(F33*(G33^2))) -> 3.047818892
F35: C | G35: u_r | H35: u_fit | I35: u_r - u_fit | J35: FFP неопределеност
A36: u | B36: =SQRT((($E$29^2)/4)+($F$33*((D36*$H$29)^2))) -> 9.006664199e-08 | D36: 0.1 | F36: =D36*$H$29 -> 1e-08 | G36: =B36 -> 9.006664199e-08 | H36: =F36*$I$33/100 -> 4.05e-09 | I36: =G36-H36 -> 8.601664199e-08 | J36: неопределеност на метода
B37: =SQRT((($E$29^2)/4)+($F$33*((D37*$H$29)^2))) -> 1.135781669e-07 | D37: 2 | F37: 2e-07 | G37: 1.135781669e-07 | H37: =F37*$I$33/100 -> 8.1e-08 | I37: =G37-H37 -> 3.257816692e-08
B38: 1.623329911e-07 | D38: 3.9 | F38: 3.9e-07 | G38: 1.623329911e-07 | H38: 1.5795e-07 | I38: 4.382991102e-09
B39: 2.201544912e-07 | D39: 5.8 | F39: 5.8e-07 | G39: 2.201544912e-07 | H39: 2.349e-07 | I39: -1.474550879e-08
B40: 2.81510213e-07 | D40: 7.7 | F40: 7.7e-07 | G40: 2.81510213e-07 | H40: 3.1185e-07 | I40: -3.033978704e-08
B41: 3.445170533e-07 | D41: 9.6 | F41: 9.6e-07 | G41: 3.445170533e-07 | H41: 3.888e-07 | I41: -4.428294672e-08
B42: 4.084115571e-07 | D42: 11.5 | F42: 1.15e-06 | G42: 4.084115571e-07 | H42: 4.6575e-07 | I42: -5.733844287e-08
B43: 4.728340089e-07 | D43: 13.4 | F43: 1.34e-06 | G43: 4.728340089e-07 | H43: 5.427e-07 | I43: -6.986599107e-08
B44: 5.375946428e-07 | D44: 15.3 | F44: 1.53e-06 | G44: 5.375946428e-07 | H44: 6.1965e-07 | I44: -8.205535717e-08
B45: 6.025844339e-07 | D45: 17.2 | F45: 1.72e-06 | G45: 6.025844339e-07 | H45: 6.966e-07 | I45: -9.401556608e-08
B46: 6.67736475e-07 | D46: 19.1 | F46: 1.91e-06 | G46: 6.67736475e-07 | H46: 7.7355e-07 | I46: -1.05813525e-07
B47: 7.330075034e-07 | D47: 21 | F47: 2.1e-06 | G47: 7.330075034e-07 | H47: 8.505e-07 | I47: -1.174924966e-07
B48: 7.98368336e-07 | D48: 22.9 | F48: 2.29e-06 | G48: 7.98368336e-07 | H48: 9.2745e-07 | I48: -1.29081664e-07
B49: 8.637985876e-07 | D49: 24.8 | F49: 2.48e-06 | G49: 8.637985876e-07 | H49: 1.0044e-06 | I49: -1.406014124e-07
B50: 9.29283595e-07 | D50: 26.7 | F50: 2.67e-06 | G50: 9.29283595e-07 | H50: 1.08135e-06 | I50: =G50-H50 -> -1.52066405e-07
L52: =MATCH(0,I36:I50,-1) -> 3
L53: =ADDRESS(35+L52,11) -> $K$38 | M53: =INDIRECT(L53,TRUE) -> 0 | O53: X1= | P53: =M54 -> 4.382991102e-09 | R53: Y1= | S53: 0
L54: =ADDRESS(35+L52,9) -> $I$38 | M54: =INDIRECT(L54,TRUE) -> 4.382991102e-09 | O54: X2= | P54: =M54 -> 4.382991102e-09 | R54: Y2= | S54: =M53 -> 0
O56: X1= | P56: 0 | R56: Y1= | S56: =M53 -> 0
O57: X2= | P57: =M54 -> 4.382991102e-09 | R57: Y2= | S57: =M53 -> 0
V681: Разработка за учебни цели ВК

Sheet u_bracket
A1: Изчисляване на неопределеността при AAS анализ след калибриране по метода на ограничаващите стандарти
M2: Метод на ограничаващите стандарти
A3: ТИП | B3: Вх. Х | C3: стойност | D3: u_s | E3: u_s_r | F3: A3 | G3: A4 | H3: Ax | I3: C3 | J3: C4 | Q3: Cx=(C3(A4-Ax)+C4(Ax-A3))/(A4-A3)
A4: А | B4: A3 | C4: 0.116 | D4: 0.003 | E4: =D4/C4 -> 0.02586206897 | F4: =$C4+D4 -> 0.119 | G4: =$C4 -> 0.116 | H4: =$C4 -> 0.116 | I4: =$C4 -> 0.116 | J4: =$C4 -> 0.116
A5: А | B5: A4 | C5: 0.175 | D5: 0.004 | E5: =D5/C5 -> 0.02285714286 | F5: =$C5 -> 0.175 | G5: =$C5+D5 -> 0.179 | H5: =$C5 -> 0.175 | I5: =$C5 -> 0.175 | J5: =$C5 -> 0.175
A6: А | B6: Ax | C6: 0.138 | D6: 0.002 | E6: =D6/C6 -> 0.01449275362 | F6: =$C6 -> 0.138 | G6: =$C6 -> 0.138 | H6: =$C6+D6 -> 0.14 | I6: =$C6 -> 0.138 | J6: =$C6 -> 0.138
A7: В | B7: C3 | C7: 1 | D7: =L10/100 -> 0.05 | E7: =D7/C7 -> 0.05 | F7: =$C7 -> 1 | G7: =$C7 -> 1 | H7: =$C7 -> 1 | I7: =$C7+D7 -> 1.05 | J7: =$C7 -> 1 | M7: 0 | N7: 0
A8: В | B8: C4 | C8: 1.5 | D8: 0.048 | E8: =D8/C8 -> 0.032 | F8: =$C8 -> 1.5 | G8: =$C8 -> 1.5 | H8: =$C8 -> 1.5 | I8: =$C8 -> 1.5 | J8: =$C8+D8 -> 1.548 | M8: 0.5 | N8: 0.051 | Q8: C3 | R8: Cx | S8: C4
D9: u_c | E9: u_c_r | M9: 1 | N9: 0.116 | Q9: A3 | R9: Ax | S9: A4
B10: Cx= | C10: =(C7*(C5-C6)+C8*(C6-C4))/(C5-C4) -> 1.186440678 | D10: =SQRT(K12) -> 0.04486770388 | E10: =D10/C10 -> 0.0378170647 | F10: =(F7*(F5-F6)+F8*(F6-F4))/(F5-F4) -> 1.169642857 | G10: =(G7*(G5-G6)+G8*(G6-G4))/(G5-G4) -> 1.174603175 | H10: =(H7*(H5-H6)+H8*(H6-H4))/(H5-H4) -> 1.203389831 | I10: =(I7*(I5-I6)+I8*(I6-I4))/(I5-I4) -> 1.21779661 | J10: =(J7*(J5-J6)+J8*(J6-J4))/(J5-J4) -> 1.204338983 | L10: 5 | M10: 1.5 | N10: 0.175
B11: U+- | C11: =D10*2 -> 0.08973540776 | E11: diff | F11: =$C$10-F10 -> 0.01679782082 | G11: =$C$10-G10 -> 0.01183750336 | H11: =$C$10-H10 -> -0.01694915254 | I11: =$C$10-I10 -> -0.0313559322 | J11: =$C$10-J10 -> -0.01789830508 | K11: сума | M11: 2 | N11: 0.224
B12: k=2 | E12: diff^2 | F12: =F11^2 -> 0.0002821667844 | G12: =G11^2 -> 0.0001401264859 | H12: =H11^2 -> 0.0002872737719 | I12: =I11^2 -> 0.0009831944843 | J12: =J11^2 -> 0.0003203493249 | K12: =SUM(F12:J12) -> 0.002013110851
F13: A3 | G13: A4 | H13: Ax | I13: C3 | J13: C4
E14: Принос | F14: =F12/$K$12 -> 0.1401645539 | G14: =G12/$K$12 -> 0.06960693981 | H14: =H12/$K$12 -> 0.1427014174 | I14: =I12/$K$12 -> 0.4883956011 | J14: =J12/$K$12 -> 0.1591314878
T44: C | U44: A
T45: 0 | U45: 0
S46: =B4 -> A3 | T46: =C7 -> 1 | U46: =C4 -> 0.116
S47: =B5 -> A4 | T47: =C8 -> 1.5 | U47: =C5 -> 0.175
S48: =B6 -> Ax | T48: =C10 -> 1.186440678 | U48: =C6 -> 0.138
V681: Разработка за учебни цели ВК
